[Event "Gibraltar Masters 18th"]
[Site "Gibraltar"]
[Date "2020.01.25"]
[Round "5.51"]
[White "Beliavsky, Alexander G"]
[Black "Vega Gutierrez, Sabrina"]
[Result "1-0"]
[ECO "A90"]
[WhiteElo "2529"]
[BlackElo "2364"]
[PlyCount "75"]
[EventDate "2020.01.21"]
[EventType "swiss"]
[EventRounds "10"]
[EventCountry "GGB"]
[SourceTitle "BritBase"]
[Source "John Saunders"]
[SourceDate "2021.06.05"]
[SourceVersion "1"]
[SourceVersionDate "2021.06.05"]
[SourceQuality "1"]
[TimeControl "40/100:0"]
[WhiteClock "0:58:16"]
[BlackClock "0:01:00"]

1. d4 {[%emt 0:00:00]} d5 {[%emt 0:00:00]} 2. c4 {[%emt 0:00:00]} e6 {[%emt 0:
00:00]} 3. Nf3 {[%emt 0:00:00]} c6 {[%emt 0:00:00]} 4. Nbd2 {[%emt 0:00:00]} f5
{[%emt 0:00:00]} 5. g3 {[%emt 0:00:00]} Nf6 {[%emt 0:00:00]} 6. Bg2 {[%emt 0:
00:00]} Bd6 {[%emt 0:00:00]} 7. Ne5 {[%emt 0:00:00]} O-O {[%emt 0:00:00]} 8.
O-O {[%emt 0:00:00]} Qe7 {[%emt 0:00:00]} 9. Ndf3 {[%emt 0:00:00]} b6 {[%emt 0:
00:00]} 10. Bf4 {[%emt 0:00:00]} Bb7 {[%emt 0:00:00]} 11. Rc1 {[%emt 0:00:00]}
dxc4 {[%emt 0:00:00]} 12. Nxc4 {[%emt 0:00:00]} Bxf4 {[%emt 0:00:00]} 13. gxf4
{[%emt 0:00:00]} Rd8 {[%emt 0:00:00]} 14. Qb3 {[%emt 0:00:00]} Nd5 {[%emt 0:00:
00]} 15. e3 {[%emt 0:00:00]} Na6 {[%emt 0:00:00]} 16. Nce5 {[%emt 0:00:00]} c5
{[%emt 0:00:00]} 17. Rc4 {[%emt 0:00:00]} Ndc7 {[%emt 0:00:00]} 18. Rcc1 {
[%emt 0:00:00]} Bd5 {[%emt 0:00:00]} 19. Qa3 {[%emt 0:00:00]} Nb4 {[%emt 0:00:
00]} 20. dxc5 {[%emt 0:00:00]} bxc5 {[%emt 0:00:00]} 21. Qa5 {[%emt 0:00:00]}
Bxa2 {[%emt 0:00:00]} 22. Rxc5 {[%emt 0:00:00]} Nca6 {[%emt 0:00:00]} 23. Rc3 {
[%emt 0:00:00]} Bd5 {[%emt 0:00:00]} 24. Nd4 {[%emt 0:00:00]} Bxg2 {[%emt 0:00:
00]} 25. Kxg2 {[%emt 0:00:00]} Rd5 {[%emt 0:00:00]} 26. Qa3 {[%emt 0:00:00]}
Rd6 {[%emt 0:00:00]} 27. Rfc1 {[%emt 0:00:00]} Qb7+ {[%emt 0:00:00]} 28. Kg3 {
[%emt 0:00:00]} Rad8 {[%emt 0:00:00]} 29. Ndc6 {[%emt 0:00:00]} Nxc6 {[%emt 0:
00:00]} 30. Nxc6 {[%emt 0:00:00]} Qf7 {[%emt 0:00:58]} 31. h3 {[%emt 0:00:00]}
Rd2 {[%emt 0:00:00]} 32. Nxd8 {[%emt 0:00:00]} Qg6+ {[%emt 0:00:00]} 33. Kf3 {
[%emt 0:00:00]} Qh5+ {[%emt 0:00:00]} 34. Kg2 {[%emt 0:00:00]} Qe2 {[%emt 0:00:
00]} 35. Rf1 {[%emt 0:00:00]} Rxd8 {[%emt 0:00:05]} 36. Qe7 {[%emt 0:00:00]}
Rf8 {[%emt 0:00:05]} 37. Qxe6+ {[%emt 0:00:00]} Kh8 {[%emt 0:00:00]} 38. Rc8 {
[%emt 0:00:00]} 1-0

[Event "Gibraltar Masters 18th"]
[Site "Gibraltar"]
[Date "2020.01.25"]
[Round "5.52"]
[White "Gordon, Stephen J"]
[Black "Abrahamyan, Tatev"]
[Result "1-0"]
[ECO "A13"]
[WhiteElo "2504"]
[BlackElo "2363"]
[PlyCount "67"]
[EventDate "2020.01.21"]
[EventType "swiss"]
[EventRounds "10"]
[EventCountry "GGB"]
[SourceTitle "BritBase"]
[Source "John Saunders"]
[SourceDate "2021.06.05"]
[SourceVersion "1"]
[SourceVersionDate "2021.06.05"]
[SourceQuality "1"]
[TimeControl "40/100:0"]
[WhiteClock "0:38:40"]
[BlackClock "0:07:26"]

1. c4 {[%emt 0:00:00]} Nf6 {[%emt 0:00:00]} 2. Nf3 {[%emt 0:00:00]} e6 {
[%emt 0:00:00]} 3. g3 {[%emt 0:00:00]} a6 {[%emt 0:00:00]} 4. Bg2 {[%emt 0:00:
00]} b5 {[%emt 0:00:00]} 5. Na3 {[%emt 0:00:00]} c6 {[%emt 0:00:00]} 6. b3 {
[%emt 0:00:00]} Be7 {[%emt 0:00:00]} 7. O-O {[%emt 0:00:00]} O-O {[%emt 0:00:
00]} 8. d4 {[%emt 0:00:00]} d5 {[%emt 0:00:00]} 9. Nc2 {[%emt 0:00:00]} Nbd7 {
[%emt 0:00:00]} 10. Nd2 {[%emt 0:00:00]} bxc4 {[%emt 0:00:00]} 11. bxc4 {
[%emt 0:00:00]} Rb8 {[%emt 0:00:00]} 12. e4 {[%emt 0:00:00]} a5 {[%emt 0:00:00]
} 13. e5 {[%emt 0:00:00]} Ne8 {[%emt 0:00:00]} 14. c5 {[%emt 0:00:00]} Nc7 {
[%emt 0:00:00]} 15. Nf3 {[%emt 0:00:00]} f6 {[%emt 0:00:00]} 16. exf6 {[%emt 0:
00:00]} Bxf6 {[%emt 0:00:00]} 17. Bf4 {[%emt 0:00:00]} Re8 {[%emt 0:00:00]} 18.
Re1 {[%emt 0:00:00]} Rb2 {[%emt 0:00:00]} 19. Qc1 {[%emt 0:00:00]} Rb5 {
[%emt 0:00:00]} 20. Bf1 {[%emt 0:00:00]} Rb7 {[%emt 0:00:00]} 21. Qd2 {[%emt 0:
00:00]} Ra7 {[%emt 0:00:00]} 22. h4 {[%emt 0:00:00]} Nf8 {[%emt 0:00:00]} 23.
Ne5 {[%emt 0:00:00]} Bxe5 {[%emt 0:00:00]} 24. Bxe5 {[%emt 0:00:00]} Ng6 {
[%emt 0:00:00]} 25. Bd6 {[%emt 0:00:00]} Nb5 {[%emt 0:00:00]} 26. Be5 {[%emt 0:
00:00]} Nxe5 {[%emt 0:00:00]} 27. Rxe5 {[%emt 0:00:00]} Bd7 {[%emt 0:00:00]}
28. Ne3 {[%emt 0:00:00]} Nc7 {[%emt 0:00:00]} 29. Bd3 {[%emt 0:00:00]} Rf8 {
[%emt 0:00:00]} 30. Rh5 {[%emt 0:00:00]} h6 {[%emt 0:00:00]} 31. Ng4 {[%emt 0:
00:00]} Ne8 {[%emt 0:00:00]} 32. Nxh6+ {[%emt 0:00:00]} gxh6 {[%emt 0:00:00]}
33. Qxh6 {[%emt 0:00:00]} Ng7 {[%emt 0:00:00]} 34. Bg6 {[%emt 0:00:00]} 1-0

[Event "Gibraltar Masters 18th"]
[Site "Gibraltar"]
[Date "2020.01.25"]
[Round "5.53"]
[White "Lei, Tingjie"]
[Black "Petrov, Vladimir Sergeev"]
[Result "1-0"]
[ECO "E01"]
[WhiteElo "2493"]
[BlackElo "2353"]
[PlyCount "75"]
[EventDate "2020.01.21"]
[EventType "swiss"]
[EventRounds "10"]
[EventCountry "GGB"]
[SourceTitle "BritBase"]
[Source "John Saunders"]
[SourceDate "2021.06.05"]
[SourceVersion "1"]
[SourceVersionDate "2021.06.05"]
[SourceQuality "1"]
[TimeControl "40/100:0"]
[WhiteClock "0:03:30"]
[BlackClock "0:01:37"]

1. d4 {[%emt 0:00:00]} Nf6 {[%emt 0:00:00]} 2. Nf3 {[%emt 0:00:00]} e6 {
[%emt 0:00:00]} 3. g3 {[%emt 0:00:00]} d5 {[%emt 0:00:00]} 4. Bg2 {[%emt 0:00:
00]} Nbd7 {[%emt 0:00:00]} 5. O-O {[%emt 0:00:00]} Be7 {[%emt 0:00:00]} 6. c4 {
[%emt 0:00:00]} c6 {[%emt 0:00:00]} 7. Qc2 {[%emt 0:00:00]} b6 {[%emt 0:00:00]}
8. cxd5 {[%emt 0:00:00]} cxd5 {[%emt 0:00:00]} 9. Bf4 {[%emt 0:00:00]} Ba6 {
[%emt 0:00:00]} 10. Rc1 {[%emt 0:00:00]} O-O {[%emt 0:00:00]} 11. Nc3 {[%emt 0:
00:00]} Nh5 {[%emt 0:00:00]} 12. Be5 {[%emt 0:00:00]} f6 {[%emt 0:00:00]} 13.
Qa4 {[%emt 0:00:00]} fxe5 {[%emt 0:00:00]} 14. Qxa6 {[%emt 0:00:00]} e4 {
[%emt 0:00:00]} 15. Ne1 {[%emt 0:00:00]} Qe8 {[%emt 0:00:00]} 16. e3 {[%emt 0:
00:00]} Nhf6 {[%emt 0:00:00]} 17. Qe2 {[%emt 0:00:00]} Qf7 {[%emt 0:00:00]} 18.
Nb5 {[%emt 0:00:00]} h5 {[%emt 0:00:00]} 19. Rc6 {[%emt 0:00:00]} Ng4 {[%emt 0:
00:00]} 20. f3 {[%emt 0:00:00]} exf3 {[%emt 0:00:00]} 21. Nxf3 {[%emt 0:00:00]}
Ndf6 {[%emt 0:00:00]} 22. Nc7 {[%emt 0:00:00]} Rac8 {[%emt 0:00:00]} 23. Ng5 {
[%emt 0:00:00]} Qg6 {[%emt 0:00:00]} 24. Ngxe6 {[%emt 0:00:00]} Nxh2 {[%emt 0:
00:00]} 25. Kxh2 {[%emt 0:00:00]} Rxc7 {[%emt 0:00:00]} 26. Nf4 {[%emt 0:00:00]
} Ng4+ {[%emt 0:00:00]} 27. Kh1 {[%emt 0:00:00]} Rxc6 {[%emt 0:00:00]} 28. Nxg6
{[%emt 0:00:00]} Rxg6 {[%emt 0:00:00]} 29. Bxd5+ {[%emt 0:00:00]} Kh8 {[%emt 0:
00:00]} 30. Rf1 {[%emt 0:00:00]} Nf6 {[%emt 0:00:00]} 31. Rf5 {[%emt 0:00:00]}
Bd6 {[%emt 0:00:00]} 32. e4 {[%emt 0:00:00]} Nxd5 {[%emt 0:00:00]} 33. Rxd5 {
[%emt 0:00:00]} Rc8 {[%emt 0:00:00]} 34. Rxh5+ {[%emt 0:00:00]} Kg8 {[%emt 0:
00:00]} 35. e5 {[%emt 0:00:00]} Be7 {[%emt 0:00:00]} 36. Qe4 {[%emt 0:00:00]}
Rcc6 {[%emt 0:00:07]} 37. d5 {[%emt 0:00:00]} Rc1+ {[%emt 0:00:00]} 38. Kg2 {
[%emt 0:00:00]} 1-0

[Event "Gibraltar Masters 18th"]
[Site "Gibraltar"]
[Date "2020.01.25"]
[Round "5.54"]
[White "Borocz, Istvan"]
[Black "Bilguun, Sumiya"]
[Result "1/2-1/2"]
[ECO "A47"]
[WhiteElo "2337"]
[BlackElo "2486"]
[PlyCount "71"]
[EventDate "2020.01.21"]
[EventType "swiss"]
[EventRounds "10"]
[EventCountry "GGB"]
[SourceTitle "BritBase"]
[Source "John Saunders"]
[SourceDate "2021.06.05"]
[SourceVersion "1"]
[SourceVersionDate "2021.06.05"]
[SourceQuality "1"]
[TimeControl "40/100:0"]
[WhiteClock "0:01:40"]
[BlackClock "0:00:36"]

1. d4 {[%emt 0:00:00]} Nf6 {[%emt 0:00:00]} 2. Nf3 {[%emt 0:00:00]} e6 {
[%emt 0:00:00]} 3. e3 {[%emt 0:00:00]} b6 {[%emt 0:00:00]} 4. Bd3 {[%emt 0:00:
00]} Bb7 {[%emt 0:00:00]} 5. O-O {[%emt 0:00:00]} Ne4 {[%emt 0:00:00]} 6. Nfd2
{[%emt 0:00:00]} d5 {[%emt 0:00:00]} 7. Bxe4 {[%emt 0:00:00]} dxe4 {[%emt 0:00:
00]} 8. b3 {[%emt 0:00:00]} Nd7 {[%emt 0:00:00]} 9. Bb2 {[%emt 0:00:00]} Qh4 {
[%emt 0:00:00]} 10. Ba3 {[%emt 0:00:00]} f5 {[%emt 0:00:00]} 11. Qe2 {[%emt 0:
00:00]} c5 {[%emt 0:00:00]} 12. Nc4 {[%emt 0:00:00]} cxd4 {[%emt 0:00:00]} 13.
Bxf8 {[%emt 0:00:00]} Kxf8 {[%emt 0:00:00]} 14. Qd2 {[%emt 0:00:00]} d3 {
[%emt 0:00:00]} 15. cxd3 {[%emt 0:00:00]} exd3 {[%emt 0:00:00]} 16. Qxd3 {
[%emt 0:00:00]} Rd8 {[%emt 0:00:00]} 17. Qd6+ {[%emt 0:00:00]} Qe7 {[%emt 0:00:
00]} 18. Nc3 {[%emt 0:00:00]} Ba6 {[%emt 0:00:00]} 19. Qf4 {[%emt 0:00:00]} Nc5
{[%emt 0:00:00]} 20. Rfd1 {[%emt 0:00:00]} Nd3 {[%emt 0:00:00]} 21. Qg3 {
[%emt 0:00:00]} Qf6 {[%emt 0:00:00]} 22. Ne5 {[%emt 0:00:00]} Nxe5 {[%emt 0:00:
49]} 23. Rxd8+ {[%emt 0:00:00]} Qxd8 {[%emt 0:00:00]} 24. Qxe5 {[%emt 0:00:00]}
Kf7 {[%emt 0:00:00]} 25. Rd1 {[%emt 0:00:00]} Qc8 {[%emt 0:00:00]} 26. e4 {
[%emt 0:00:00]} g6 {[%emt 0:00:00]} 27. h4 {[%emt 0:00:00]} Rd8 {[%emt 0:00:00]
} 28. Rxd8 {[%emt 0:00:12]} Qxd8 {[%emt 0:00:00]} 29. h5 {[%emt 0:00:00]} Qd2 {
[%emt 0:00:00]} 30. exf5 {[%emt 0:00:27]} gxf5 {[%emt 0:00:00]} 31. Qc7+ {
[%emt 0:00:10]} Kf6 {[%emt 0:00:00]} 32. Qxh7 {[%emt 0:00:00]} Qe1+ {[%emt 0:
00:13]} 33. Kh2 {[%emt 0:00:00]} Qxf2 {[%emt 0:00:00]} 34. Qg6+ {[%emt 0:00:00]
} Ke7 {[%emt 0:00:05]} 35. Qg7+ {[%emt 0:00:00]} Ke8 {[%emt 0:00:00]} 36. Kh3 {
[%emt 0:02:15]} 1/2-1/2

[Event "Gibraltar Masters 18th"]
[Site "Gibraltar"]
[Date "2020.01.25"]
[Round "5.55"]
[White "Gines Esteo, Pedro Antonio"]
[Black "Zhukova, Natalia"]
[Result "0-1"]
[ECO "A07"]
[WhiteElo "2482"]
[BlackElo "2338"]
[PlyCount "66"]
[EventDate "2020.01.21"]
[EventType "swiss"]
[EventRounds "10"]
[EventCountry "GGB"]
[SourceTitle "BritBase"]
[Source "John Saunders"]
[SourceDate "2021.06.05"]
[SourceVersion "1"]
[SourceVersionDate "2021.06.05"]
[SourceQuality "1"]
[TimeControl "40/100:0"]
[WhiteClock "0:02:32"]
[BlackClock "0:04:04"]

1. Nf3 {[%emt 0:00:00]} d5 {[%emt 0:00:00]} 2. g3 {[%emt 0:00:00]} Nd7 {
[%emt 0:00:00]} 3. Bg2 {[%emt 0:00:00]} e5 {[%emt 0:00:00]} 4. d3 {[%emt 0:00:
00]} Ngf6 {[%emt 0:00:00]} 5. O-O {[%emt 0:00:00]} c6 {[%emt 0:00:00]} 6. c4 {
[%emt 0:00:00]} Bd6 {[%emt 0:00:00]} 7. a3 {[%emt 0:00:00]} O-O {[%emt 0:00:00]
} 8. b4 {[%emt 0:00:00]} Re8 {[%emt 0:00:00]} 9. Bb2 {[%emt 0:00:00]} a5 {
[%emt 0:00:00]} 10. c5 {[%emt 0:00:00]} Bf8 {[%emt 0:00:00]} 11. Nbd2 {[%emt 0:
00:00]} b6 {[%emt 0:00:00]} 12. d4 {[%emt 0:00:00]} exd4 {[%emt 0:00:00]} 13.
Nxd4 {[%emt 0:00:00]} bxc5 {[%emt 0:00:00]} 14. Nxc6 {[%emt 0:00:00]} Qb6 {
[%emt 0:00:00]} 15. Nxa5 {[%emt 0:00:00]} Rxa5 {[%emt 0:00:00]} 16. Bxf6 {
[%emt 0:00:00]} cxb4 {[%emt 0:00:00]} 17. axb4 {[%emt 0:00:00]} Bxb4 {[%emt 0:
00:00]} 18. Rxa5 {[%emt 0:00:00]} Qxa5 {[%emt 0:00:00]} 19. Nb3 {[%emt 0:00:00]
} Qb5 {[%emt 0:00:00]} 20. Ba1 {[%emt 0:00:00]} Qxe2 {[%emt 0:00:00]} 21. Qxd5
{[%emt 0:00:00]} Qe6 {[%emt 0:00:00]} 22. Qd4 {[%emt 0:00:00]} Bf8 {[%emt 0:00:
00]} 23. Bd5 {[%emt 0:00:00]} Qg6 {[%emt 0:00:00]} 24. Qa4 {[%emt 0:00:55]} Rd8
{[%emt 0:00:00]} 25. Rd1 {[%emt 0:00:09]} Nb6 {[%emt 0:00:00]} 26. Qa5 {
[%emt 0:00:04]} Rxd5 {[%emt 0:00:00]} 27. Rxd5 {[%emt 0:00:00]} Qb1+ {[%emt 0:
00:00]} 28. Kg2 {[%emt 0:00:00]} Nxd5 {[%emt 0:00:00]} 29. Qxd5 {[%emt 0:00:00]
} Be6 {[%emt 0:00:00]} 30. Qd8 {[%emt 0:00:00]} Qxb3 {[%emt 0:00:00]} 31. Bd4 {
[%emt 0:00:00]} Bd5+ {[%emt 0:00:00]} 32. Kh3 {[%emt 0:00:00]} Qf3 {[%emt 0:00:
00]} 33. Bc5 {[%emt 0:00:00]} Be6+ {[%emt 0:00:00]} 0-1

[Event "Gibraltar Masters 18th"]
[Site "Gibraltar"]
[Date "2020.01.25"]
[Round "5.56"]
[White "Abergel, Thal"]
[Black "Garcia Martin, Marta"]
[Result "1-0"]
[ECO "A13"]
[WhiteElo "2478"]
[BlackElo "2317"]
[PlyCount "167"]
[EventDate "2020.01.21"]
[EventType "swiss"]
[EventRounds "10"]
[EventCountry "GGB"]
[SourceTitle "BritBase"]
[Source "John Saunders"]
[SourceDate "2021.06.05"]
[SourceVersion "1"]
[SourceVersionDate "2021.06.05"]
[SourceQuality "1"]
[TimeControl "40/100:0"]
[WhiteClock "0:13:01"]
[BlackClock "0:00:41"]

1. Nf3 {[%emt 0:00:00]} Nf6 {[%emt 0:00:00]} 2. c4 {[%emt 0:00:00]} e6 {
[%emt 0:00:00]} 3. g3 {[%emt 0:00:00]} d5 {[%emt 0:00:00]} 4. Bg2 {[%emt 0:00:
00]} dxc4 {[%emt 0:00:00]} 5. Qa4+ {[%emt 0:00:00]} Bd7 {[%emt 0:00:00]} 6.
Qxc4 {[%emt 0:00:00]} c5 {[%emt 0:00:00]} 7. Nc3 {[%emt 0:00:00]} Bc6 {[%emt 0:
00:00]} 8. d3 {[%emt 0:00:00]} Nbd7 {[%emt 0:00:00]} 9. Bf4 {[%emt 0:00:00]} a6
{[%emt 0:00:00]} 10. O-O {[%emt 0:00:00]} b5 {[%emt 0:00:00]} 11. Qb3 {[%emt 0:
00:00]} Be7 {[%emt 0:00:00]} 12. a4 {[%emt 0:00:00]} O-O {[%emt 0:00:00]} 13.
Rfc1 {[%emt 0:00:00]} Qb6 {[%emt 0:00:00]} 14. Nd2 {[%emt 0:00:00]} Bxg2 {
[%emt 0:00:00]} 15. Kxg2 {[%emt 0:00:00]} Ng4 {[%emt 0:00:00]} 16. Nd1 {
[%emt 0:00:00]} Qc6+ {[%emt 0:00:00]} 17. Kg1 {[%emt 0:00:00]} e5 {[%emt 0:00:
00]} 18. Be3 {[%emt 0:00:00]} Nb6 {[%emt 0:00:00]} 19. axb5 {[%emt 0:00:00]}
axb5 {[%emt 0:00:00]} 20. h3 {[%emt 0:00:00]} Nxe3 {[%emt 0:00:00]} 21. Nxe3 {
[%emt 0:00:00]} Bg5 {[%emt 0:00:00]} 22. Ndf1 {[%emt 0:00:00]} g6 {[%emt 0:00:
00]} 23. Rxa8 {[%emt 0:00:00]} Rxa8 {[%emt 0:00:00]} 24. Qc2 {[%emt 0:00:00]}
Be7 {[%emt 0:00:00]} 25. Nd2 {[%emt 0:00:00]} Nd5 {[%emt 0:00:00]} 26. Nxd5 {
[%emt 0:00:00]} Qxd5 {[%emt 0:00:00]} 27. Ne4 {[%emt 0:00:00]} Rc8 {[%emt 0:00:
00]} 28. Nc3 {[%emt 0:00:00]} Qe6 {[%emt 0:00:00]} 29. h4 {[%emt 0:00:00]} b4 {
[%emt 0:00:00]} 30. Ne4 {[%emt 0:00:00]} Kg7 {[%emt 0:00:00]} 31. Nd2 {[%emt 0:
00:00]} Ra8 {[%emt 0:00:00]} 32. b3 {[%emt 0:00:00]} f5 {[%emt 0:00:00]} 33.
Qb2 {[%emt 0:00:00]} h6 {[%emt 0:00:00]} 34. Ra1 {[%emt 0:00:00]} Rxa1+ {
[%emt 0:00:00]} 35. Qxa1 {[%emt 0:00:00]} Bf6 {[%emt 0:01:02]} 36. Qa7+ {
[%emt 0:00:00]} Qe7 {[%emt 0:00:00]} 37. Qb6 {[%emt 0:00:00]} g5 {[%emt 0:00:
00]} 38. h5 {[%emt 0:00:00]} Qf7 {[%emt 0:00:04]} 39. g4 {[%emt 0:00:00]} fxg4
{[%emt 0:00:00]} 40. Ne4 {[%emt 0:00:00]} Be7 {[%emt 0:00:00]} 41. Qc7 {
[%emt 0:00:00]} Kf8 {[%emt 0:00:00]} 42. Qb8+ {[%emt 0:00:00]} Qe8 {[%emt 0:00:
00]} 43. Qxe5 {[%emt 0:00:00]} Qxh5 {[%emt 0:00:00]} 44. Nxc5 {[%emt 0:00:00]}
Qg6 {[%emt 0:00:00]} 45. Qb8+ {[%emt 0:00:00]} Kg7 {[%emt 0:00:00]} 46. Qxb4 {
[%emt 0:00:00]} g3 {[%emt 0:00:00]} 47. Qd4+ {[%emt 0:00:00]} Qf6 {[%emt 0:00:
00]} 48. Qxf6+ {[%emt 0:00:00]} Bxf6 {[%emt 0:00:00]} 49. e3 {[%emt 0:00:00]}
gxf2+ {[%emt 0:00:00]} 50. Kxf2 {[%emt 0:00:00]} Kf7 {[%emt 0:00:00]} 51. b4 {
[%emt 0:00:00]} h5 {[%emt 0:00:00]} 52. b5 {[%emt 0:00:00]} Bd8 {[%emt 0:00:00]
} 53. d4 {[%emt 0:00:00]} g4 {[%emt 0:00:00]} 54. e4 {[%emt 0:00:00]} h4 {
[%emt 0:00:00]} 55. Nd3 {[%emt 0:00:00]} Ke6 {[%emt 0:00:00]} 56. Nf4+ {
[%emt 0:00:00]} Kd7 {[%emt 0:00:00]} 57. Nd5 {[%emt 0:00:00]} h3 {[%emt 0:00:
00]} 58. Ne3 {[%emt 0:00:00]} Bh4+ {[%emt 0:00:00]} 59. Kg1 {[%emt 0:00:00]} g3
{[%emt 0:00:00]} 60. Nf5 {[%emt 0:00:00]} Bg5 {[%emt 0:00:00]} 61. b6 {[%emt 0:
00:00]} Kc6 {[%emt 0:00:25]} 62. d5+ {[%emt 0:00:00]} Kxb6 {[%emt 0:00:00]} 63.
Nxg3 {[%emt 0:00:00]} Kc5 {[%emt 0:00:14]} 64. Kh2 {[%emt 0:00:00]} Kd4 {
[%emt 0:00:52]} 65. Kxh3 {[%emt 0:00:00]} Ke5 {[%emt 0:00:00]} 66. Kg4 {
[%emt 0:00:00]} Bd8 {[%emt 0:00:00]} 67. Kf3 {[%emt 0:00:00]} Bg5 {[%emt 0:00:
09]} 68. Nf1 {[%emt 0:00:00]} Kd4 {[%emt 0:00:00]} 69. Nh2 {[%emt 0:00:00]} Bd8
{[%emt 0:00:00]} 70. Ng4 {[%emt 0:00:00]} Bc7 {[%emt 0:00:00]} 71. Ne3 {
[%emt 0:00:00]} Bb8 {[%emt 0:00:00]} 72. Nf5+ {[%emt 0:00:00]} Ke5 {[%emt 0:00:
00]} 73. Ke3 {[%emt 0:00:00]} Ba7+ {[%emt 0:00:00]} 74. Kd3 {[%emt 0:00:00]}
Bb8 {[%emt 0:00:00]} 75. Ne3 {[%emt 0:00:00]} Kd6 {[%emt 0:00:00]} 76. Nc2 {
[%emt 0:00:00]} Kc5 {[%emt 0:00:00]} 77. Nd4 {[%emt 0:00:00]} Bh2 {[%emt 0:00:
00]} 78. Nf5 {[%emt 0:00:00]} Be5 {[%emt 0:00:00]} 79. Ke3 {[%emt 0:00:00]} Kc4
{[%emt 0:00:02]} 80. Kf3 {[%emt 0:00:00]} Bb8 {[%emt 0:00:00]} 81. d6 {[%emt 0:
00:00]} Kc5 {[%emt 0:01:32]} 82. Kf4 {[%emt 0:00:00]} Kc6 {[%emt 0:00:00]} 83.
Ke5 {[%emt 0:00:00]} Ba7 {[%emt 0:00:00]} 84. Ke6 {[%emt 0:00:00]} 1-0

[Event "Gibraltar Masters 18th"]
[Site "Gibraltar"]
[Date "2020.01.25"]
[Round "5.57"]
[White "Nandhidhaa, P V."]
[Black "Di Berardino, Diego Rafael"]
[Result "1-0"]
[ECO "C48"]
[WhiteElo "2312"]
[BlackElo "2478"]
[PlyCount "75"]
[EventDate "2020.01.21"]
[EventType "swiss"]
[EventRounds "10"]
[EventCountry "GGB"]
[SourceTitle "BritBase"]
[Source "John Saunders"]
[SourceDate "2021.06.05"]
[SourceVersion "1"]
[SourceVersionDate "2021.06.05"]
[SourceQuality "1"]
[TimeControl "40/100:0"]

1. e4 {[%emt 2:20:54]} e5 {[%emt 0:00:09]} 2. Nf3 {[%emt 0:00:06]} Nc6 {
[%emt 0:00:04]} 3. Nc3 {[%emt 0:00:05]} Nf6 {[%emt 0:00:13]} 4. Bb5 {[%emt 0:
00:06]} Nd4 {[%emt 0:00:25]} 5. O-O {[%emt 0:00:40]} Nxb5 {[%emt 0:05:16]} 6.
Nxb5 {[%emt 0:00:08]} c6 {[%emt 0:00:55]} 7. Nc3 {[%emt 0:01:21]} d6 {[%emt 0:
00:41]} 8. d4 {[%emt 0:00:53]} Qc7 {[%emt 0:02:02]} 9. h3 {[%emt 0:02:41]} b5 {
[%emt 0:07:51]} 10. Re1 {[%emt 0:11:00]} Be7 {[%emt 0:00:56]} 11. Qd3 {[%emt 0:
26:05]} h6 {[%emt 0:14:25]} 12. a4 {[%emt 0:11:39]} b4 {[%emt 0:00:20]} 13. Ne2
{[%emt 0:01:54]} O-O {[%emt 0:04:13]} 14. Ng3 {[%emt 0:04:58]} Re8 {[%emt 0:02:
25]} 15. dxe5 {[%emt 0:01:38]} dxe5 {[%emt 0:00:05]} 16. Nh4 {[%emt 0:00:57]}
Bf8 {[%emt 0:03:02]} 17. Nhf5 {[%emt 0:06:13]} Kh7 {[%emt 0:05:19]} 18. Qf3 {
[%emt 0:01:18]} Ng8 {[%emt 0:12:01]} 19. b3 {[%emt 0:04:42]} g6 {[%emt 0:10:08]
} 20. Ne3 {[%emt 0:00:40]} a5 {[%emt 0:02:20]} 21. Bb2 {[%emt 0:01:18]} Be6 {
[%emt 0:04:14]} 22. Rad1 Rad8 {[%emt 0:05:02]} 23. Ngf1 {[%emt 0:05:10]} h5 {
[%emt 0:03:30]} 24. Nd2 {[%emt 0:01:58]} Bh6 {[%emt 0:00:22]} 25. Ndc4 {
[%emt 0:00:33]} f6 {[%emt 0:00:10]} 26. Rxd8 {[%emt 0:09:20]} Rxd8 {[%emt 0:00:
03]} 27. Rd1 {[%emt 0:00:10]} Rxd1+ {[%emt 0:01:43]} 28. Qxd1 {[%emt 0:00:07]}
Bf8 {[%emt 0:00:04]} 29. Qd3 {[%emt 0:04:51]} Nh6 {[%emt 0:01:58]} 30. Bc1 {
[%emt 0:01:46]} Nf7 {[%emt 0:00:06]} 31. Nd1 {[%emt 0:01:07]} Nd8 {[%emt 0:07:
29]} 32. Ndb2 {[%emt 0:02:08]} Nb7 {[%emt 0:02:17]} 33. Qf3 {[%emt 0:03:19]}
Qd8 {[%emt 0:02:13]} 34. Be3 {[%emt 0:01:45]} Nc5 {[%emt 0:00:23]} 35. Nxa5 {
[%emt 0:02:25]} Qxa5 {[%emt 0:07:11]} 36. Qxf6 {[%emt 0:00:05]} Bg7 {[%emt 0:
00:52]} 37. Qe7 {[%emt 0:00:10]} Bxb3 {[%emt 0:00:21]} 38. Qxc5 {[%emt 0:03:30]
} 1-0